fUST/lending_fUST_20240430
["ID","MTS","AMOUNT","RATE_DAILY","PERIOD"]
[324916863,1714415445221,-550.8267117,0.00041096,31]
[324916864,1714415445230,-550.8267117,0.00041096,31]
[324916865,1714415445240,-550.8267117,0.00041096,31]
[324916866,1714415445249,-550.8267117,0.00041096,31]
[324916867,1714415445259,-550.8267117,0.00041096,31]
[324916868,1714415445269,-550.8267117,0.00041096,31]
[324916869,1714415445279,-550.8267117,0.00041096,31]
[324916870,1714415445288,-550.8267117,0.00041096,31]
[324916871,1714415445299,-550.8267117,0.00041096,31]
[324916872,1714415445308,-550.8267117,0.00041096,31]
[324916873,1714415445317,-550.8267117,0.00041096,31]
[324916874,1714415445327,-550.8267117,0.00041096,31]
[324916875,1714415445336,-550.8267117,0.00041096,31]
[324916876,1714415445346,-550.8267117,0.00041096,31]
[324916877,1714415445356,-550.8267117,0.00041096,31]
[324916878,1714415445366,-550.8267117,0.00041096,31]
[324916879,1714415445376,-550.8267117,0.00041096,31]
[324916880,1714415445385,-550.8267117,0.00041096,31]
[324916881,1714415445395,-317.78682225,0.00041184,7]
[324916882,1714415445405,-645.7,0.0004132,30]
[324916883,1714415445414,-404.099999,0.000414,15]
[324916884,1714415445424,-168.58,0.000415,35]
[324916885,1714415445434,-150.5,0.0004151,35]
[324916886,1714415445443,-150.5,0.0004152,35]
[324916887,1714415445452,-151.0,0.00041524,7]
[324916888,1714415445462,-151.0,0.00041524,7]
[324916889,1714415445471,-151.0,0.00041524,7]
[324916890,1714415445481,-151.0,0.00041524,7]
[324916891,1714415445490,-151.0,0.00041524,7]
[324916892,1714415445500,-151.0,0.00041524,7]
[324916893,1714415445509,-288.418844,0.00041524,7]
[324916894,1714415445519,-151.0,0.00041524,7]
[324916895,1714415445528,-288.418844,0.00041524,7]
[324916896,1714415445537,-286.048983,0.00041524,7]
[324916897,1714415445546,-286.048983,0.00041524,7]
[324916898,1714415445557,-191.171644,0.00041524,7]
[324916899,1714415445567,-725.637031,0.00041524,7]
[324916900,1714415445576,-191.171644,0.00041524,7]
[324916901,1714415445586,-151.0,0.00041524,7]
[324916902,1714415445595,-757.514192,0.00041524,7]
[324916904,1714415445610,-757.514192,0.00041524,7]
[324916905,1714415445620,-725.637031,0.00041524,7]
[324916906,1714415445629,-757.514192,0.00041524,7]
[324916907,1714415445639,-757.514192,0.00041524,7]
[324916908,1714415445650,-205.064709,0.00041524,7]
[324916909,1714415445659,-205.064709,0.00041524,7]
[324916910,1714415445669,-205.064709,0.00041524,7]
[324916911,1714415445679,-205.064709,0.00041524,7]
[324916912,1714415445688,-151.0,0.00041524,7]
[324916913,1714415445697,-151.0,0.00041524,7]
[324916914,1714415445706,-192.909774,0.00041524,7]
[324916915,1714415445715,-625.23079,0.00041524,7]
[324916916,1714415445725,-625.23079,0.00041524,7]
[324916917,1714415445734,-625.23079,0.00041524,7]
[324916918,1714415445743,-625.23079,0.00041524,7]
[324916919,1714415445754,-152.836272,0.00041524,7]
[324916920,1714415445763,-152.836272,0.00041524,7]
[324916921,1714415445773,-152.836272,0.00041524,7]
[324916922,1714415445782,-152.836272,0.00041524,7]
[324916923,1714415445792,-151.0,0.00041524,7]
[324916924,1714415445803,-151.0,0.00041524,7]
[324916925,1714415445812,-4805.199544,0.00041524,7]
[324916926,1714415445822,-4805.199544,0.00041524,7]
[324916927,1714415445831,-4805.199544,0.00041524,7]
[324916928,1714415445840,-4805.199544,0.00041524,7]
[324916929,1714415445850,-151.0,0.00041524,7]
[324916930,1714415445859,-151.0,0.00041524,7]
[324916931,1714415445869,-628.556117,0.00041524,7]
[324916932,1714415445878,-628.556117,0.00041524,7]
[324916933,1714415445887,-199.785048,0.00041524,7]
[324916934,1714415445896,-628.556117,0.00041524,7]
[324916935,1714415445905,-628.556117,0.00041524,7]
[324916936,1714415445915,-822.140022,0.00041524,7]
[324916938,1714415445925,-822.140022,0.00041524,7]
[324916940,1714415445933,-822.140022,0.00041524,7]
[324916942,1714415445942,-822.140022,0.00041524,7]
[324916944,1714415445951,-218.797184,0.00041524,7]
[324916946,1714415445961,-512.439697,0.00041524,7]
[324916948,1714415445971,-512.439697,0.00041524,7]
[324916950,1714415445980,-512.439697,0.00041524,7]
[324916952,1714415445989,-512.439697,0.00041524,7]
[324916954,1714415445998,-151.0,0.00041524,7]
[324916956,1714415446007,-151.0,0.00041524,7]
[324916958,1714415446017,-3217.233928,0.00041524,7]
[324916960,1714415446026,-151.0,0.00041524,7]
[324916962,1714415446035,-3217.233928,0.00041524,7]
[324916964,1714415446045,-151.0,0.00041524,7]
[324916966,1714415446054,-3217.233928,0.00041524,7]
[324916968,1714415446063,-3217.233928,0.00041524,7]
[324916970,1714415446072,-778.17898,0.00041524,7]
[324916972,1714415446081,-778.17898,0.00041524,7]
[324916974,1714415446091,-778.17898,0.00041524,7]
[324916976,1714415446100,-778.17898,0.00041524,7]
[324916978,1714415446109,-454.368819,0.00041524,7]
[324916980,1714415446117,-454.368819,0.00041524,7]
[324916982,1714415446126,-454.368819,0.00041524,7]
[324916984,1714415446135,-454.368819,0.00041524,7]
[324916986,1714415446144,-29575.56394136,0.00041524,7]
[324916988,1714415446154,-1140210.51826827,0.00041524,90]
[324916991,1714415446165,-158.392944,0.00041552,2]
[324916994,1714415446174,-3864.038183,0.00041553,120]
[324916996,1714415446184,-150.5,0.0004197,35]
[324916999,1714415446193,-967.0,0.0004197,35]
[324917002,1714415446202,-693.0,0.0004197,35]
[324917005,1714415446211,-150.5,0.0004198,35]
[324917007,1714415446221,-967.0,0.0004198,35]
[324917009,1714415446230,-693.0,0.0004198,35]
[324917011,1714415446239,-150.5,0.0004199,35]
[324917013,1714415446248,-967.0,0.0004199,35]
[324917015,1714415446257,-693.0,0.0004199,35]
[324917017,1714415446266,-444.38453395,0.00042,120]
[324917019,1714415446275,-30000.0,0.00042,20]
[324917021,1714415446284,-6472.72925249,0.00042,5]
[324917023,1714415446293,-10000.0,0.00042,120]
[324917025,1714415446303,-2672.0,0.00042,30]
[324917027,1714415446312,-10000.0,0.00042,30]
[324917029,1714415446321,-16042.0,0.00042,30]
[324917031,1714415446331,-805.0,0.00042,30]
[324917033,1714415446340,-628.556117,0.00042,7]
[324917035,1714415446350,-628.556117,0.00042,7]
[324917037,1714415446359,-512.439697,0.00042,7]
[324917039,1714415446368,-512.439697,0.00042,7]
[324917041,1714415446377,-151.0,0.00042,7]
[324917043,1714415446386,-3217.233928,0.00042,7]
[324917045,1714415446395,-223.458975,0.00042,7]
[324917047,1714415446404,-3217.233928,0.00042,7]
[324917049,1714415446414,-778.17898,0.00042,7]
[324917051,1714415446423,-778.17898,0.00042,7]
[324917053,1714415446432,-454.368819,0.00042,7]
[324917055,1714415446441,-454.368819,0.00042,7]
[324917057,1714415446451,-1637.93310082,0.000424,120]
[324917059,1714415446460,-300.0,0.000424,16]
[324917061,1714415446469,-500.0,0.00042465,10]
[324917063,1714415446478,-872.86567335,0.000428,60]
[324917065,1714415446487,-5000.0,0.00043,120]
[324917067,1714415446496,-79307.60374735,0.00043,2]
[324917069,1714415446505,-151.0,0.00043,7]
[324917071,1714415446514,-151.0,0.00043,7]
[324917073,1714415446524,-172.808372,0.00043,7]
[324917075,1714415446533,-151.0,0.00043,7]
[324917077,1714415446542,-151.0,0.00043,7]
[324917079,1714415446551,-288.418844,0.00043,7]
[324917081,1714415446560,-151.0,0.00043,7]
[324917083,1714415446569,-288.418844,0.00043,7]
[324917085,1714415446578,-286.048983,0.00043,7]
[324917087,1714415446587,-286.048983,0.00043,7]
[324917089,1714415446597,-191.171644,0.00043,7]
[324917091,1714415446610,-725.637031,0.00043,7]
[324917093,1714415446619,-191.171644,0.00043,7]
[324917095,1714415446628,-151.0,0.00043,7]
[324917097,1714415446637,-757.514192,0.00043,7]
[324917099,1714415446648,-725.637031,0.00043,7]
[324917101,1714415446657,-757.514192,0.00043,7]
[324917103,1714415446666,-205.064709,0.00043,7]
[324917105,1714415446675,-205.064709,0.00043,7]
[324917107,1714415446686,-151.0,0.00043,7]
[324917109,1714415446695,-625.23079,0.00043,7]
[324917111,1714415446705,-625.23079,0.00043,7]
[324917113,1714415446714,-152.836272,0.00043,7]
[324917115,1714415446723,-152.836272,0.00043,7]
[324917117,1714415446732,-4805.199544,0.00043,7]
[324917119,1714415446741,-4805.199544,0.00043,7]
[324917121,1714415446750,-151.0,0.00043,7]
[324917123,1714415446760,-628.556117,0.00043,7]
[324917125,1714415446769,-628.556126,0.00043,7]
[324917127,1714415446778,-822.140022,0.00043,7]
[324917129,1714415446787,-822.140022,0.00043,7]
[324917131,1714415446796,-512.439697,0.00043,7]
[324917133,1714415446806,-512.439692,0.00043,7]
[324917135,1714415446815,-207.20128,0.00043,7]
[324917137,1714415446824,-3217.233928,0.00043,7]
[324917139,1714415446834,-3217.233932,0.00043,7]
[324917141,1714415446843,-778.17898,0.00043,7]
[324917143,1714415446852,-778.178983,0.00043,7]
[324917145,1714415446861,-454.368819,0.00043,7]
[324917147,1714415446870,-454.368827,0.00043,7]
[324917149,1714415446880,-150.77383924,0.00043004,2]
[324917151,1714415446890,-417.0,0.0004321,2]
[324917153,1714415446899,-645.7,0.0004323,30]
[324917155,1714415446908,-300.0,0.000434,18]
[324917157,1714415446917,-153.34957971,0.00043537,48]
[324917159,1714415446926,-151.0,0.000437,7]
[324917161,1714415446936,-151.0,0.000437,7]
[324917163,1714415446945,-151.0,0.000437,7]
[324917165,1714415446954,-288.418844,0.000437,7]
[324917167,1714415446963,-151.0,0.000437,7]
[324917169,1714415446972,-288.418844,0.000437,7]
[324917171,1714415446981,-286.048983,0.000437,7]
[324917173,1714415446991,-286.048983,0.000437,7]
[324917175,1714415447000,-191.171644,0.000437,7]
[324917177,1714415447009,-725.637031,0.000437,7]
[324917179,1714415447018,-191.171644,0.000437,7]
[324917181,1714415447028,-757.514192,0.000437,7]
[324917183,1714415447037,-725.637031,0.000437,7]
[324917185,1714415447047,-757.514192,0.000437,7]
[324917187,1714415447057,-205.064709,0.000437,7]
[324917189,1714415447067,-205.064709,0.000437,7]
[324917191,1714415447076,-151.0,0.000437,7]
[324917193,1714415447085,-625.23079,0.000437,7]
[324917195,1714415447095,-625.23079,0.000437,7]
[324917197,1714415447104,-152.836272,0.000437,7]
[324917199,1714415447113,-152.836272,0.000437,7]
[324917201,1714415447122,-4805.199544,0.000437,7]
[324917203,1714415447131,-4805.199544,0.000437,7]
[324917205,1714415447140,-151.0,0.000437,7]
[324917207,1714415447149,-822.140022,0.000437,7]
[324917209,1714415447158,-822.140022,0.000437,7]
[324917211,1714415447168,-200309.85,0.000437,7]
[324917213,1714415447178,-500.0,0.00043835,30]
[324917215,1714415447187,-500.0,0.00043835,30]
[324917217,1714415447198,-500.01281628,0.00043835,2]
[324917219,1714415447207,-311.42710708,0.00043835,30]
[324917221,1714415447217,-500.0,0.00043835,30]
[324917223,1714415447226,-500.0,0.00043835,30]
[324917225,1714415447235,-500.0,0.00043835,30]
[324917227,1714415447244,-500.0,0.00043835,30]
[324917229,1714415447254,-500.0,0.00043835,30]
[324917231,1714415447262,-530.81760426,0.00043835,30]
[324917233,1714415447271,-500.0,0.00043835,30]
[324917235,1714415447281,-500.0,0.00043835,30]
[324917237,1714415447290,-500.0,0.00043835,30]
[324917239,1714415447299,-504.88084729,0.00043835,30]
[324917241,1714415447308,-500.0,0.00043835,30]
[324917243,1714415447317,-500.0,0.00043835,30]
[324917245,1714415447328,-288.39032908,0.00043835,30]
[324917247,1714415447337,-500.0,0.00043835,30]
[324917249,1714415447346,-500.0,0.00043835,30]
[324917251,1714415447355,-500.0,0.00043835,30]
[324917253,1714415447364,-500.0,0.00043835,30]
[324917256,1714415447374,-576.61711292,0.00043835,30]
[324917258,1714415447383,-500.0,0.00043835,30]
[324917260,1714415447394,-500.0,0.00043835,30]
[324917262,1714415447404,-500.0,0.00043835,30]
[324917264,1714415447413,-500.0,0.00043835,30]
[324917266,1714415447422,-500.90520861,0.00043835,30]
[324917267,1714415447431,-500.0,0.00043835,30]
[324917270,1714415447440,-587.73608665,0.00043835,30]
[324917271,1714415447449,-500.0,0.00043835,30]
[324917274,1714415447459,-500.0,0.00043835,30]
[324917276,1714415447468,-500.0,0.00043835,30]
[324917278,1714415447477,-500.0,0.00043835,30]
[324917279,1714415447486,-504.21956918,0.00043835,30]
[324917282,1714415447495,-500.0,0.00043835,30]
[324917283,1714415447504,-500.0,0.00043835,30]
[324917285,1714415447514,-1000.0,0.00043835,30]
[324917288,1714415447523,-500.0,0.00043835,30]
[324917289,1714415447532,-500.0,0.00043835,30]
[324917291,1714415447541,-500.0,0.00043835,30]
[324917293,1714415447551,-500.0,0.00043835,30]
[324917296,1714415447560,-500.0,0.00043835,30]
[324917297,1714415447569,-500.0,0.00043835,30]
[324917299,1714415447578,-500.0,0.00043835,30]
[324917301,1714415447587,-500.0,0.00043835,30]
[324917304,1714415447597,-1097.52,0.00043835,30]
[324917306,1714415447610,-500.0,0.00043835,30]
[324917307,1714415447619,-375.69011241,0.00043835,30]
[324917308,1714415447628,-500.0,0.00043835,30]
[324917309,1714415447637,-995.66,0.00043835,30]
[324917310,1714415447757,-500.0,0.00043835,30]
[324917311,1714415447766,-500.0,0.00043835,30]
[324917313,1714415447776,-559.37,0.00043835,30]
[324917315,1714415447785,-500.0,0.00043835,30]
[324917317,1714415447795,-500.0,0.00043835,30]
[324917319,1714415447804,-300.0,0.00043835,7]
[324917321,1714415447813,-500.0,0.00043835,30]
[324917322,1714415447823,-500.0,0.00043835,3]
[324917325,1714415447833,-500.0,0.00043835,30]
[324917326,1714415447843,-779.99,0.00043835,30]
[324917329,1714415447853,-500.0,0.00043835,30]
[324917331,1714415447864,-500.0,0.00043835,30]
[324917332,1714415447874,-500.0,0.00043835,30]
[324917335,1714415447885,-500.0,0.00043835,30]
[324917337,1714415447894,-500.0,0.00043835,30]
[324917339,1714415447903,-500.0,0.00043835,30]
[324917340,1714415447912,-500.0,0.00043835,30]
[324917342,1714415447932,-500.0,0.00043835,30]
[324917343,1714415447943,-500.0,0.00043835,30]
[324917344,1714415447952,-500.0,0.00043835,30]
[324917345,1714415447962,-500.0,0.00043835,30]
[324917346,1714415447972,-500.0,0.00043835,30]
[324917347,1714415447982,-500.0,0.00043835,30]
[324917348,1714415447991,-341.65381454,0.00043835,30]
[324917349,1714415448002,-500.0,0.00043835,30]
[324917350,1714415448012,-500.0,0.00043835,30]
[324917351,1714415448022,-500.0,0.00043835,30]
[324917352,1714415448032,-596.46721587,0.00043835,30]
[324917353,1714415448042,-500.0,0.00043835,30]
[324917354,1714415448053,-289.5570205,0.00043835,30]
[324917355,1714415448064,-568.5235273,0.00043835,30]
[324917356,1714415448074,-500.0,0.00043835,30]
[324917357,1714415448087,-153.66047146,0.00043835,30]
[324917358,1714415448096,-500.0,0.00043835,7]
[324917359,1714415448107,-500.0,0.00043835,30]
[324917360,1714415448117,-500.0,0.00043835,30]
[324917361,1714415448127,-500.0,0.00043835,30]
[324917362,1714415448136,-500.0,0.00043835,30]
[324917363,1714415448146,-500.0,0.00043835,30]
[324917364,1714415448156,-500.0,0.00043835,30]
[324917365,1714415448165,-500.0,0.00043835,30]
[324917366,1714415448174,-500.0,0.00043835,30]
[324917367,1714415448184,-500.0,0.00043835,30]
[324917368,1714415448194,-500.0,0.00043835,30]
[324917370,1714415448204,-500.0,0.00043835,30]
[324917372,1714415448214,-500.0,0.00043835,30]
[324917373,1714415448223,-500.0,0.00043835,30]
[324917375,1714415448234,-500.0,0.00043835,30]
[324917377,1714415448243,-500.0,0.00043835,30]
[324917379,1714415448253,-500.0,0.00043835,30]
[324917380,1714415448262,-500.0,0.00043835,30]
[324917381,1714415448272,-500.0,0.00043835,30]
[324917382,1714415448282,-411.51217398,0.00043835,30]
[324917383,1714415448292,-500.0,0.00043835,30]
[324917384,1714415448302,-500.0,0.00043835,30]
[324917385,1714415448312,-500.0,0.00043835,30]
[324917386,1714415448322,-531.7,0.00043835,30]
[324917387,1714415448331,-500.0,0.00043835,30]
[324917388,1714415448341,-500.0,0.00043835,30]
[324917389,1714415448351,-500.0,0.00043835,30]
[324917390,1714415448362,-500.0,0.00043835,30]
[324917391,1714415448371,-500.0,0.00043835,30]
[324917393,1714415448381,-518.78202221,0.00043835,30]
[324917394,1714415448391,-500.0,0.00043835,30]
[324917395,1714415448400,-500.0,0.00043835,30]
[324917396,1714415448410,-500.0,0.00043835,30]
[324917397,1714415448419,-535.88,0.00043835,30]
[324917398,1714415448429,-500.0,0.00043835,30]
[324917399,1714415448439,-500.0,0.00043835,30]
[324917400,1714415448448,-969.16,0.00043835,30]
[324917401,1714415448458,-500.0,0.00043835,30]
[324917402,1714415448467,-500.0,0.00043835,30]
[324917403,1714415448476,-500.0,0.00043835,30]
[324917404,1714415448486,-500.0,0.00043835,30]
[324917405,1714415448496,-500.0,0.00043835,30]
[324917406,1714415448505,-500.0,0.00043835,30]
[324917407,1714415448514,-500.0,0.00043835,30]
[324917408,1714415448524,-151.0,0.00043835,30]
[324917409,1714415448534,-500.0,0.00043835,30]
[324917410,1714415448543,-500.0,0.00043835,30]
[324917411,1714415448554,-500.0,0.00043835,30]
[324917412,1714415448563,-387.10120771,0.00043835,30]
[324917413,1714415448572,-500.0,0.00043835,30]
[324917414,1714415448581,-500.0,0.00043835,30]
[324917415,1714415448591,-500.0,0.00043835,30]
[324917416,1714415448602,-500.0,0.00043835,30]
[324917417,1714415448614,-464.50816679,0.00043835,30]
[324917418,1714415448624,-500.0,0.00043835,30]
[324917419,1714415448633,-500.0,0.00043835,30]
[324917420,1714415448643,-500.0,0.00043835,30]
[324917421,1714415448652,-500.0,0.00043835,30]
[324917422,1714415448662,-500.0,0.00043835,30]
[324917423,1714415448673,-500.0,0.00043835,30]
[324917424,1714415448685,-500.0,0.00043835,30]
[324917425,1714415448695,-500.0,0.00043835,30]
[324917426,1714415448705,-500.0,0.00043835,30]
[324917427,1714415448716,-500.0,0.00043835,30]
[324917428,1714415448726,-500.0,0.00043835,30]
[324917429,1714415448736,-500.0,0.00043835,30]
[324917430,1714415448745,-201.07386942,0.00043835,30]
[324917431,1714415448756,-500.0,0.00043835,30]
[324917432,1714415448767,-500.0,0.00043835,30]
[324917433,1714415448776,-500.0,0.00043835,30]
[324917434,1714415448786,-500.0,0.00043835,30]
[324917435,1714415448796,-500.0,0.00043835,30]
[324917436,1714415448806,-500.0,0.00043835,30]
[324917437,1714415448815,-500.0,0.00043835,30]
[324917438,1714415448824,-502.86774339,0.00043835,30]
[324917439,1714415448834,-500.0,0.00043835,30]
[324917440,1714415448844,-500.0,0.00043835,30]
[324917441,1714415448853,-183.91194194,0.00043835,30]
[324917442,1714415448863,-286.44378589,0.00043835,30]
[324917443,1714415448872,-500.0,0.00043835,30]
[324917444,1714415448883,-500.0,0.00043835,30]
[324917445,1714415448894,-909.64,0.00043835,7]
[324917446,1714415448904,-500.0,0.00043835,14]
[324917447,1714415448914,-500.0,0.00043835,30]
[324917448,1714415448923,-500.0,0.00043835,30]
[324917449,1714415448932,-909.63,0.00043835,30]
[324917450,1714415448942,-500.0,0.00043835,30]
[324917451,1714415448952,-502.8,0.00043835,2]
[324917452,1714415448961,-500.0,0.00043835,30]
[324917453,1714415448970,-500.0,0.00043835,30]
[324917454,1714415448980,-500.0,0.00043835,2]
[324917455,1714415448989,-500.0,0.00043835,30]
[324917456,1714415449000,-868.37,0.00043835,30]
[324917457,1714415449009,-500.0,0.00043835,30]
[324917458,1714415449018,-500.0,0.00043835,30]
[324917459,1714415449028,-500.0,0.00043835,30]
[324917460,1714415449038,-500.0,0.00043835,30]
[324917461,1714415449047,-500.0,0.00043835,30]
[324917462,1714415449058,-500.0,0.00043835,30]
[324917463,1714415449069,-500.0,0.00043835,30]
[324917464,1714415449079,-500.0,0.00043835,30]
[324917465,1714415449090,-500.0,0.00043835,30]
[324917466,1714415449101,-867.7,0.00043835,30]
[324917467,1714415449110,-500.0,0.00043835,30]
[324917468,1714415449120,-665.51,0.00043835,30]
[324917469,1714415449129,-500.0,0.00043835,30]
[324917470,1714415449140,-500.0,0.00043835,30]
[324917471,1714415449150,-500.0,0.00043835,30]
[324917472,1714415449161,-500.0,0.00043835,30]
[324917473,1714415449171,-500.0,0.00043835,30]
[324917474,1714415449183,-500.0,0.00043835,30]
[324917475,1714415449193,-500.0,0.00043835,30]
[324917476,1714415449203,-500.0,0.00043835,30]
[324917477,1714415449213,-500.0,0.00043835,30]
[324917478,1714415449224,-500.0,0.00043835,30]
[324917479,1714415449233,-500.0,0.00043835,30]
[324917480,1714415449244,-500.0,0.00043835,30]
[324917481,1714415449254,-500.0,0.00043835,30]
[324917482,1714415449269,-500.0,0.00043835,30]
[324917483,1714415449279,-500.0,0.00043835,7]
[324917484,1714415449288,-500.0,0.00043835,30]
[324917485,1714415449297,-606.79,0.00043835,30]
[324917486,1714415449307,-500.0,0.00043835,30]
[324917487,1714415449317,-500.0,0.00043835,30]
[324917488,1714415449326,-500.0,0.00043835,2]
[324917489,1714415449335,-500.0,0.00043835,30]
[324917490,1714415449344,-608.73,0.00043835,30]
[324917491,1714415449354,-500.0,0.00043835,30]
[324917492,1714415449363,-151.0,0.00043835,7]
[324917493,1714415449372,-151.0,0.00043835,7]
[324917494,1714415449382,-151.0,0.00043835,7]
[324917495,1714415449391,-243.66522956,0.00043835,30]
[324917496,1714415449400,-500.0,0.00043835,30]
[324917497,1714415449409,-500.0,0.00043835,2]
[324917498,1714415449418,-500.0,0.00043835,30]
[324917499,1714415449427,-500.0,0.00043835,30]
[324917500,1714415449437,-500.0,0.00043835,30]
[324917501,1714415449446,-500.0,0.00043835,30]
[324917502,1714415449455,-513.65931457,0.00043835,2]
[324917503,1714415449464,-500.0,0.00043835,30]
[324917504,1714415449474,-617.425796,0.00043835,2]
[324917505,1714415449483,-500.0,0.00043835,30]
[324917506,1714415449492,-500.0,0.00043835,30]
[324917507,1714415449502,-500.0,0.00043835,30]
[324917508,1714415449512,-500.0,0.00043835,30]
[324917509,1714415449521,-500.0,0.00043835,30]
[324917510,1714415449530,-1050.4,0.00043835,30]
[324917511,1714415449540,-500.0,0.00043835,30]
[324917512,1714415449549,-500.0,0.00043835,30]
[324917513,1714415449559,-500.0,0.00043835,30]
[324917514,1714415449568,-500.0,0.00043835,30]
[324917515,1714415449578,-799.06,0.00043835,30]
[324917516,1714415449587,-500.0,0.00043835,30]
[324917517,1714415449596,-500.0,0.00043835,30]
[324917518,1714415449609,-281.31968883,0.00043835,30]
[324917519,1714415449619,-500.0,0.00043835,30]
[324917520,1714415449628,-500.0,0.00043835,30]
[324917521,1714415449637,-539.69,0.00043835,30]
[324917522,1714415449647,-500.0,0.00043835,30]
[324917523,1714415449657,-534.11,0.00043835,30]
[324917524,1714415449666,-500.0,0.00043835,30]
[324917525,1714415449675,-500.0,0.00043835,30]
[324917526,1714415449685,-705.29,0.00043835,30]
[324917527,1714415449694,-500.0,0.00043835,30]
[324917528,1714415449703,-500.0,0.00043835,30]
[324917529,1714415449712,-500.0,0.00043835,30]
[324917530,1714415449721,-500.0,0.00043835,30]
[324917531,1714415449730,-670.46,0.00043835,30]
[324917532,1714415449739,-756.14,0.00043835,30]
[324917533,1714415449748,-500.0,0.00043835,30]
[324917534,1714415449758,-204.52213411,0.00043835,30]
[324917535,1714415449767,-500.0,0.00043835,30]
[324917536,1714415449776,-500.0,0.00043835,30]
[324917537,1714415449785,-500.0,0.00043835,30]
[324917538,1714415449795,-500.0,0.00043835,30]
[324917539,1714415449804,-500.0,0.00043835,30]
[324917540,1714415449814,-500.0,0.00043835,30]
[324917541,1714415449823,-500.0,0.00043835,30]
[324917542,1714415449833,-500.0,0.00043835,30]
[324917543,1714415449842,-500.0,0.00043835,30]
[324917544,1714415449851,-500.0,0.00043835,30]
[324917545,1714415449860,-500.0,0.00043835,30]
[324917546,1714415449869,-523.46,0.00043835,30]
[324917547,1714415449879,-500.0,0.00043835,30]
[324917548,1714415449888,-500.0,0.00043835,30]
[324917549,1714415449897,-686.15,0.00043835,30]
[324917550,1714415449907,-504.19712216,0.00043835,30]
[324917551,1714415449916,-598.9,0.00043835,30]
[324917552,1714415449926,-500.0,0.00043835,30]
[324917553,1714415449935,-500.0,0.00043835,30]
[324917554,1714415449944,-202.054555,0.00043835,7]
[324917555,1714415449953,-323.25382167,0.00043835,30]
[324917556,1714415449962,-500.0,0.00043835,30]
[324917557,1714415449971,-500.0,0.00043835,30]
[324917558,1714415449980,-484.58487953,0.00043835,30]
[324917559,1714415449989,-500.0,0.00043835,30]
[324917560,1714415449999,-500.0,0.00043835,30]
[324917561,1714415450009,-500.0,0.00043835,30]
[324917562,1714415450019,-295.2687458,0.00043835,30]
[324917563,1714415450029,-504.01309128,0.00043835,30]
[324917564,1714415450040,-500.0,0.00043835,30]
[324917565,1714415450050,-512.21,0.00043835,30]
[324917566,1714415450061,-500.40387787,0.00043835,7]
[324917567,1714415450070,-500.90423701,0.00043835,30]
[324917568,1714415450079,-500.0,0.00043835,30]
[324917569,1714415450090,-500.12952987,0.00043835,30]
[324917570,1714415450100,-500.0,0.00043835,30]
[324917571,1714415450110,-912.62,0.00043835,30]
[324917572,1714415450120,-563.54,0.00043835,30]